bitfinex-derivatives/quotes_BNBF0:USTF0_20230831
["timestamp","ask_amount","ask_price","bid_price","bid_amount"]
[1693517620078,0.07522738,216.23,215.94,0.18001292]
[1693517620280,0.07522738,216.23,215.9,0.18001292]
[1693517620478,0.07522738,216.24,215.91,0.18001292]
[1693517620782,0.07522738,216.24,215.92,0.18001292]
[1693517620982,0.07522738,216.24,215.93,0.18001292]
[1693517621183,0.07522738,216.24,215.94,0.18001292]
[1693517621383,0.07522738,216.24,215.95,0.18001292]
[1693517621584,0.07522738,216.24,215.9,0.18001292]
[1693517621783,0.07522738,216.24,215.91,0.18001292]
[1693517621978,0.07522738,216.24,215.9,0.18001292]
[1693517622183,0.07522738,216.24,215.91,0.18001292]
[1693517622384,0.07522738,216.24,215.92,0.18001292]
[1693517622684,0.07522738,216.24,215.93,0.18001292]
[1693517622882,0.07522738,216.24,215.89,0.07588986]
[1693517622883,0.07522738,216.24,215.9,0.18001292]
[1693517623083,0.07522738,216.24,215.91,0.18001292]
[1693517623384,0.07522738,216.24,215.89,0.07588986]
[1693517623385,0.07522738,216.24,215.92,0.18001292]
[1693517623587,0.07522738,216.24,215.93,0.18001292]
[1693517623783,0.07522738,216.24,215.94,0.18001292]
[1693517624085,0.07522738,216.24,215.95,0.18001292]
[1693517624286,0.07522738,216.24,215.9,0.18001292]
[1693517624479,0.07522738,216.24,215.91,0.18001292]
[1693517624685,0.07522738,216.24,215.92,0.18001292]
[1693517624881,0.07522738,216.24,215.93,0.18001292]
[1693517625188,0.07522738,216.24,215.94,0.18001292]
[1693517625487,0.07522738,216.24,215.95,0.18001292]
[1693517625686,0.07522738,216.24,215.96,0.18001292]
[1693517625880,0.07522738,216.24,215.9,0.18001292]
[1693517626083,0.07522738,216.24,215.91,0.18001292]
[1693517626279,0.07522738,216.24,215.92,0.18001292]
[1693517626485,0.07522738,216.24,215.9,0.18001292]
[1693517626686,0.07522738,216.24,215.91,0.18001292]
[1693517626886,0.07522738,216.24,215.92,0.18001292]
[1693517627086,0.07522738,216.24,215.9,0.18001292]
[1693517627286,0.07522738,216.24,215.91,0.18001292]
[1693517627485,0.07522738,216.23,215.9,0.25590278]
[1693517627680,0.07522738,216.23,215.91,0.18001292]
[1693517629386,0.07522738,216.22,215.92,0.18001292]
[1693517629583,0.07522738,216.22,215.89,0.25590278]
[1693517629888,0.07522738,216.22,215.9,0.18001292]
[1693517632283,0.07522738,216.21,215.9,0.18001292]
[1693517632483,0.07522738,216.21,215.9,0.25590278]
[1693517632682,0.07522738,216.21,215.91,0.18001292]
[1693517632886,0.07522738,216.21,215.92,0.18001292]
[1693517633089,0.07522738,216.21,215.9,0.18001292]
[1693517633289,0.07522738,216.21,215.91,0.18001292]
[1693517635390,0.07522738,216.2,215.91,0.18001292]
[1693517636384,0.07522738,216.2,215.91,0.25590278]
[1693517636691,0.07522738,216.2,215.92,0.18001292]
[1693517637292,0.07522738,216.19,215.92,0.25590278]
[1693517637485,0.07522738,216.19,215.93,0.18001292]
[1693517637690,0.07522738,216.18,215.93,0.18001292]
[1693517638191,2.50757937,216.32,215.93,0.18001292]
[1693517638192,0.07522738,216.17,215.93,0.25590278]
[1693517638391,0.07522738,216.17,215.94,0.18001292]
[1693517641987,0.07522738,216.17,215.94,0.25590278]
[1693517642190,0.07522738,216.17,215.95,0.18001292]
[1693517642592,0.07522738,216.16,215.96,0.18001292]
[1693517642794,0.07522738,216.16,215.93,0.07588986]
[1693517642994,0.07522738,216.16,215.94,0.18005096]
[1693517643195,0.07522738,216.17,215.94,0.18005096]
[1693517643394,0.07522738,216.16,215.94,0.18005096]
[1693517643590,0.07522738,216.17,215.94,0.18005096]
[1693517644489,0.07522738,216.16,215.94,0.18005096]
[1693517646092,0.07522738,216.17,215.94,0.18005096]
[1693517646595,0.07522738,216.16,215.94,0.18005096]
[1693517646994,0.07522738,216.11,215.94,0.18005096]
[1693517647299,0.07522738,216.11,215.87,0.07588986]
[1693517647500,0.07522738,216.11,215.88,0.25615143]
[1693517647699,0.07522738,216.11,215.89,0.18026157]
[1693517647893,0.07522738,216.11,215.9,0.18026157]
[1693517648098,0.07522738,216.12,215.86,0.07588986]
[1693517648295,0.07522738,216.12,215.87,0.18026411]
[1693517648499,0.07522738,216.12,215.88,0.18026411]
[1693517648699,0.07522738,216.12,215.85,0.07588986]
[1693517648700,0.07522738,216.12,215.86,0.18026411]
[1693517648901,0.07522738,216.13,215.87,0.18026411]
[1693517649103,0.07522738,216.13,215.88,0.18026411]
[1693517649302,0.07522738,216.13,215.85,0.18026411]
[1693517649505,0.07522738,216.13,215.84,0.07588986]
[1693517649506,0.07522738,216.13,215.86,0.18026411]
[1693517649703,0.07522738,216.13,215.87,0.18026411]
[1693517649903,0.07522738,216.14,215.85,0.18026411]
[1693517650199,0.07522738,216.14,215.86,0.18026411]
[1693517650397,0.07522738,216.14,215.87,0.18026411]
[1693517650600,0.07522738,216.14,215.88,0.18026411]
[1693517650800,0.07522738,216.14,215.89,0.18026411]
[1693517651001,0.07522738,216.14,215.84,0.18026411]
[1693517651202,0.07522738,216.14,215.85,0.18026197]
[1693517651402,0.07522738,216.15,215.86,0.18026197]
[1693517651603,0.07522738,216.14,215.83,0.18026197]
[1693517651802,0.07522738,216.14,215.84,0.18026197]
[1693517651998,0.07522738,216.15,215.85,0.18026197]
[1693517652303,0.07522738,216.15,215.86,0.18026197]
[1693517652500,0.07522738,216.15,215.87,0.18026197]
[1693517652701,0.07522738,216.15,215.83,0.18026197]
[1693517653004,0.07522738,216.15,215.84,0.18026197]
[1693517653304,0.07522738,216.15,215.85,0.18026197]
[1693517653498,0.07522738,216.15,215.86,0.18026197]
[1693517653699,0.07522738,216.15,215.87,0.18026197]
[1693517653902,0.07522738,216.16,215.82,0.18026197]
[1693517654102,0.07522738,216.16,215.83,0.18026197]
[1693517654307,0.07522738,216.16,215.84,0.18026197]
[1693517654600,0.07522738,216.16,215.85,0.18026197]
[1693517654797,0.07522738,216.16,215.82,0.18026197]
[1693517655002,0.07522738,216.16,215.83,0.18026197]
[1693517655206,0.07522738,216.16,215.84,0.18026197]
[1693517655407,0.07522738,216.17,215.82,0.18026197]
[1693517655701,0.07522738,216.17,215.83,0.18026197]
[1693517655901,0.07522738,216.17,215.84,0.18026197]
[1693517656106,0.07522738,216.17,215.85,0.18026197]
[1693517656307,0.07522738,216.17,215.86,0.18026197]
[1693517656506,0.07522738,216.17,215.82,0.18026197]
[1693517656708,0.07522738,216.17,215.83,0.18026197]
[1693517656902,0.07522738,216.17,215.82,0.18026197]
[1693517657104,0.07522738,216.17,215.83,0.18026197]
[1693517657306,0.07522738,216.17,215.84,0.18026197]
[1693517657506,0.07522738,216.17,215.85,0.18026197]
[1693517657706,0.07522738,216.17,215.81,0.25615183]
[1693517657902,0.07522738,216.17,215.82,0.18026197]
[1693517659209,0.07522738,216.17,215.81,0.18026197]
[1693517661412,0.07522738,216.17,215.81,0.25615183]
[1693517661612,0.07522738,216.17,215.82,0.18026197]
[1693517665015,0.07522738,216.17,215.83,0.18026197]
[1693517665215,0.07522738,216.17,215.82,0.18026197]
[1693517665415,0.07522738,216.17,215.83,0.18026197]
[1693517665615,0.07522738,216.17,215.84,0.18026197]
[1693517665813,0.07522738,216.22,215.86,0.07588986]
[1693517666013,0.07522738,216.24,215.88,0.07588986]
[1693517666216,0.07522738,216.24,215.89,0.18026197]
[1693517670618,0.07522738,216.25,215.89,0.18026197]
[1693517671716,0.07522738,216.24,215.89,0.18026197]
[1693517672118,0.07522738,216.25,215.89,0.18026197]
[1693517673119,0.07522738,216.24,215.89,0.18026197]
[1693517673315,0.07522738,216.25,215.88,0.25615183]
[1693517673519,0.07522738,216.25,215.89,0.18026197]
[1693517674619,0.07522738,216.25,215.9,0.18026197]
[1693517674820,0.07522738,216.25,215.64,1.0118648]
[1693517674821,0.07522738,216.26,215.91,0.18026197]
[1693517675115,0.07522738,216.26,215.92,0.18026197]
[1693517675316,0.07522738,216.26,215.89,0.18026197]
[1693517675622,0.07522738,216.26,215.9,0.18026197]
[1693517675824,0.07522738,216.26,215.91,0.18026197]
[1693517676024,0.07522738,216.26,215.89,0.18026197]
[1693517676321,0.07522738,216.26,215.9,0.18026197]
[1693517676521,0.07522738,216.26,215.89,0.18026197]
[1693517676720,0.07522738,216.26,215.9,0.18026197]
[1693517676920,0.07522738,216.26,215.89,0.18026197]
[1693517677121,0.07522738,216.26,215.9,0.18026197]
[1693517677320,0.07522738,216.26,215.91,0.18026197]
[1693517677622,0.07522738,216.26,215.92,0.18026197]
[1693517677821,0.07522738,216.26,215.93,0.18026197]
[1693517678023,0.07522738,216.26,215.88,0.18026197]
[1693517678322,0.07522738,216.26,215.89,0.18026197]
[1693517678623,0.07522738,216.26,215.9,0.18026197]
[1693517678822,0.07522738,216.26,215.91,0.18026197]
[1693517679123,0.07522738,216.26,215.92,0.18026197]
[1693517679326,0.07522738,216.26,215.93,0.18026197]
[1693517679523,0.07522738,216.26,215.88,0.18026197]
[1693517679723,0.07522738,216.26,215.89,0.18026197]
[1693517679922,0.07522738,216.26,215.88,0.18026197]
[1693517680123,0.07522738,216.26,215.89,0.18026197]
[1693517680323,0.07522738,216.26,215.9,0.18026197]
[1693517680524,0.07522738,216.26,215.88,0.18026197]
[1693517680824,0.07522738,216.26,215.89,0.18026197]
[1693517681027,0.07522738,216.26,215.9,0.18026197]
[1693517681226,0.07522738,216.26,215.91,0.18026197]
[1693517681420,0.07522738,216.26,215.92,0.18026197]
[1693517681637,0.07522738,216.26,215.88,0.18026197]
[1693517681824,0.07522738,216.26,215.89,0.18026197]
[1693517682127,0.07522738,216.26,215.9,0.18026197]
[1693517682329,0.07522738,216.26,215.91,0.18026197]
[1693517682529,0.07522738,216.26,215.87,0.18026197]
[1693517682732,0.07522738,216.26,215.88,0.18026197]
[1693517682926,0.07522738,216.26,215.87,0.18026197]
[1693517683130,0.07522738,216.26,215.86,0.07588986]
[1693517683131,0.07522738,216.26,215.88,0.18026197]
[1693517683331,0.07522738,216.26,215.89,0.18026197]
[1693517683528,0.07522738,216.26,215.87,0.18026197]
[1693517683728,0.07522738,216.26,215.88,0.18026197]
[1693517683930,0.07522738,216.26,215.87,0.25615183]
[1693517684231,0.07522738,216.26,215.88,0.18026197]
[1693517685127,0.07522738,216.26,215.89,0.18026197]
[1693517685331,0.07522738,216.26,215.88,0.18026197]
[1693517685528,0.07522738,216.26,215.89,0.18026197]
[1693517685732,0.07522738,216.26,215.88,0.18026197]
[1693517685930,0.07522738,216.26,215.89,0.18026197]
[1693517686233,0.07522738,216.26,215.9,0.18026197]
[1693517686427,0.07522738,216.26,215.91,0.18026197]
[1693517686633,0.07522738,216.26,215.92,0.18026197]
[1693517686834,0.07522738,216.26,215.93,0.18026197]
[1693517687032,0.07522738,216.26,215.94,0.18026197]
[1693517687235,0.07522738,216.25,215.95,0.18026197]
[1693517687434,0.07522738,216.25,215.87,0.18026197]
[1693517687632,0.07522738,216.26,215.88,0.18026197]
[1693517687832,0.07522738,216.25,215.87,0.18026197]
[1693517688032,0.07522738,216.25,215.88,0.18026197]
[1693517688234,0.07522738,216.25,215.87,0.18026197]
[1693517688430,0.07522738,216.25,215.88,0.18026197]
[1693517688736,0.07522738,216.25,215.89,0.18026197]
[1693517688937,0.07522738,216.25,215.88,0.18026197]
[1693517689139,0.07522738,216.25,215.89,0.18026197]
[1693517689435,0.07522738,216.25,215.9,0.18026197]
[1693517689633,0.07522738,216.25,215.87,0.18026197]
[1693517689838,0.07522738,216.25,215.88,0.18026197]
[1693517690040,0.07522738,216.24,215.87,0.25615183]
[1693517690234,0.07522738,216.24,215.8,0.15177972]
[1693517690235,0.07522738,216.24,215.88,0.18026197]
[1693517690439,0.07522738,216.24,215.89,0.18026197]
[1693517690635,0.07522738,216.24,215.87,0.18026197]
[1693517690838,0.07522738,216.24,215.88,0.18026197]
[1693517691140,0.07522738,216.23,215.89,0.18026197]
[1693517691439,0.07522738,216.24,215.9,0.18026197]
[1693517691638,0.07522738,216.24,215.88,0.18026197]
[1693517691839,0.07522738,216.24,215.89,0.18026197]
[1693517692138,0.07522738,216.24,215.87,0.07588986]
[1693517692139,0.07522738,216.23,215.9,0.18026197]
[1693517692339,0.07522738,216.24,215.88,0.18026197]
[1693517692531,0.07522738,216.24,215.87,0.07588986]
[1693517692532,0.07522738,216.24,215.89,0.18026197]
[1693517692736,0.07522738,216.24,215.88,0.18026197]
[1693517692937,0.07522738,216.23,215.89,0.18026197]
[1693517693139,0.07522738,216.23,215.88,0.18026197]
[1693517693439,0.07522738,216.23,215.89,0.18026197]
[1693517693634,0.07522738,216.23,215.9,0.18026197]
[1693517693841,0.07522738,216.23,215.91,0.18026197]
[1693517694034,0.07522738,216.23,215.92,0.18026197]
[1693517694238,0.07522738,216.23,215.93,0.18026197]
[1693517694440,0.07522738,216.23,215.94,0.18026197]
[1693517694740,0.07522738,216.23,215.95,0.18026197]
[1693517694939,0.07522738,216.22,215.89,0.18026197]
[1693517695140,0.07522738,216.22,215.9,0.18026197]
[1693517695338,0.07522738,216.22,215.89,0.18026197]
[1693517695538,0.07522738,216.22,215.9,0.18026197]
[1693517695734,0.07522738,216.22,215.89,0.18026197]
[1693517695934,0.07522738,216.21,215.89,0.18026197]
[1693517696339,0.07522738,216.21,215.89,0.25615183]
[1693517696640,0.07522738,216.21,215.9,0.18026197]
[1693517696836,0.07522738,216.2,215.89,0.25615183]
[1693517697039,0.07522738,216.2,215.9,0.18026197]
[1693517697938,0.07522738,216.19,215.9,0.25615183]
[1693517698141,0.07522738,216.19,215.91,0.18026197]
[1693517698334,0.50151587,216.24,215.91,0.18026197]
[1693517698335,0.07522738,216.2,215.91,0.18026197]
[1693517698736,0.07522738,216.19,215.91,0.18026197]
[1693517698937,0.07522738,216.18,215.91,0.25615183]
[1693517699137,0.07522738,216.18,215.92,0.18026197]
[1693517699939,0.07522738,216.16,215.93,0.07588986]
[1693517700140,0.07522738,216.16,215.94,0.18026197]
[1693517704244,0.07522738,216.17,215.94,0.18026197]
[1693517704445,0.07522738,216.16,215.94,0.18026197]
[1693517705047,0.07522738,216.17,215.94,0.18026197]
[1693517705746,0.07522738,216.16,215.94,0.18026197]
[1693517705944,0.07522738,216.17,215.94,0.18026197]
[1693517707949,0.07522738,216.18,215.94,0.25615183]
[1693517708144,0.07522738,216.18,215.95,0.25615183]
[1693517708348,0.07522738,216.18,215.96,0.18026197]
[1693517708944,0.07522738,216.18,215.95,0.18026197]
[1693517709143,0.07522738,216.18,215.96,0.18026197]
[1693517710745,0.07522738,216.19,215.96,0.18026197]
[1693517711252,0.07522738,216.18,215.96,0.18026197]
[1693517711953,0.07522738,216.19,215.96,0.25615183]
[1693517712147,0.07522738,216.19,215.97,0.18026197]
[1693517713353,0.07522738,216.19,215.98,0.18026197]
[1693517713554,0.07522738,216.19,215.96,0.18026197]
[1693517713754,0.07522738,216.19,215.97,0.17998841]
[1693517713954,0.07522738,216.19,215.98,0.17998841]
[1693517714149,0.07522738,216.19,215.96,0.17998841]
[1693517714355,0.07522738,216.19,215.97,0.17999201]
[1693517714550,0.07522738,216.19,215.98,0.17999201]
[1693517714756,0.07522738,216.19,215.95,0.07588986]
[1693517714956,0.07522738,216.19,215.96,0.17998069]
[1693517715654,0.07522738,216.18,215.96,0.17998069]
[1693517715850,0.07522738,216.18,215.95,0.17998069]
[1693517716053,0.07522738,216.18,215.96,0.17998069]
[1693517716256,0.07522738,216.17,215.94,0.07588986]
[1693517716457,0.07522738,216.17,215.95,0.18002605]
[1693517716657,0.07522738,216.17,215.94,0.18002605]
[1693517716858,0.07522738,216.17,215.95,0.18002605]
[1693517717056,0.07522738,216.17,215.96,0.18002605]
[1693517717354,0.07522738,216.17,215.93,0.07588986]
[1693517717558,0.07522738,216.17,215.94,0.18002712]
[1693517718462,0.07522738,216.16,215.94,0.18002712]
[1693517718763,0.07522738,216.17,215.94,0.18002712]
[1693517718958,0.07522738,216.16,215.94,0.18002712]
[1693517719162,0.07522738,216.17,215.94,0.18002712]
[1693517721361,0.07522738,216.17,215.94,0.18002712]
[1693517727366,0.07522738,216.18,215.94,0.25591698]
[1693517727567,0.07522738,216.17,215.95,0.18002712]
[1693517728064,0.07522738,216.17,215.96,0.18002712]
[1693517728259,0.07522738,216.18,215.94,0.07588986]
[1693517728468,0.07522738,216.18,215.95,0.18002348]
[1693517728661,0.07522738,216.17,215.95,0.18002348]
[1693517728866,0.07522738,216.17,215.96,0.18002348]
[1693517729062,0.07522738,216.17,215.93,0.07588986]
[1693517729265,0.07522738,216.17,215.94,0.18003337]
[1693517729666,0.07522738,216.18,215.94,0.25592323]
[1693517729867,0.15045476,216.2,215.95,0.18003337]
[1693517729868,0.07522738,216.17,215.95,0.18003337]
[1693517730062,0.07522738,216.17,215.93,0.07588986]
[1693517730063,0.07522738,216.17,215.96,0.18003337]
[1693517730265,0.07522738,216.17,215.93,0.07588986]
[1693517730467,0.07522738,216.18,215.94,0.25592719]
[1693517730661,0.07522738,216.17,215.95,0.18003733]
[1693517730869,0.07522738,216.17,215.96,0.18003733]
[1693517731063,0.07522738,216.17,215.94,0.18003733]
[1693517731465,0.07522738,216.18,215.94,0.25592719]
[1693517731666,0.07522738,216.17,215.95,0.18003733]
[1693517731866,0.07522738,216.17,215.96,0.18003733]
[1693517732066,0.07522738,216.17,215.94,0.18003733]
[1693517732368,0.07522738,216.17,215.95,0.18002774]
[1693517732868,0.07522738,216.17,215.96,0.18002774]
[1693517733167,0.07522738,216.17,215.93,0.07588986]
[1693517733369,0.07522738,216.17,215.94,0.1800374]
[1693517734470,0.07522738,216.17,215.94,0.25592726]
[1693517734670,0.07522738,216.17,215.95,0.1800374]
[1693517735471,0.07522738,216.17,215.96,0.1800374]
[1693517735672,0.07273286,216.17,215.94,0.07588986]
[1693517735971,0.07273286,216.17,215.95,0.17893131]
[1693517736670,0.15045476,216.19,215.96,0.17893131]
[1693517736872,0.15045476,216.19,215.94,0.07588986]
[1693517737065,0.15045476,216.19,215.95,0.178837]
[1693517737866,0.15045476,216.19,215.94,0.178837]
[1693517738067,0.15045476,216.19,215.95,0.178837]
[1693517738466,0.15045476,216.19,215.96,0.178837]
[1693517738671,0.15045476,216.19,215.93,0.07588986]
[1693517738866,0.15045476,216.19,215.87,0.15177972]
[1693517738867,0.15045476,216.2,215.94,0.25473369]
[1693517739071,0.15045476,216.19,215.95,0.17884383]
[1693517739466,0.15045476,216.19,215.96,0.17884383]
[1693517739669,0.15045476,216.19,215.93,0.07588986]
[1693517739871,0.15045476,216.2,215.94,0.25473541]
[1693517740168,0.15045476,216.19,215.95,0.17884555]
[1693517740569,0.15045476,216.19,215.96,0.17884555]
[1693517740769,0.15045476,216.19,215.93,0.07588986]
[1693517740971,0.15045476,216.19,215.94,0.1788446]
[1693517741172,0.15045476,216.19,215.94,0.25473446]
[1693517741467,0.15045476,216.19,215.95,0.1788446]
[1693517741968,0.15045476,216.19,215.94,0.1788446]
[1693517742168,0.15045476,216.19,215.95,0.17886583]
[1693517742369,0.15045476,216.19,215.96,0.17886583]
[1693517742570,0.15045476,216.19,215.93,0.07588986]
[1693517742770,0.15045476,216.19,215.94,0.1788526]
[1693517745474,0.50151587,216.21,215.94,0.1788526]
[1693517745475,0.15045476,216.18,215.94,0.1788526]
[1693517745669,0.15045476,216.19,215.94,0.1788526]
[1693517746977,0.15045476,216.18,215.94,0.1788526]
[1693517748077,0.15045476,216.18,215.94,0.25474246]
[1693517748376,0.15045476,216.18,215.95,0.1788526]
[1693517750779,3.24890229,216.46,215.95,0.1788526]
[1693517750978,0.15112309,216.17,215.96,0.1788526]
[1693517751579,0.15112309,216.17,215.94,0.07588193]
[1693517751780,0.15112309,216.17,215.95,0.17887427]
[1693517751978,0.15112309,216.16,215.95,0.17887427]
[1693517752173,0.15112309,216.17,215.95,0.17887427]
[1693517754779,0.15112309,216.18,215.95,0.17887427]
[1693517754981,0.15112309,216.17,215.95,0.17887427]
[1693517755875,0.15112309,216.18,215.95,0.17887427]
[1693517756074,0.15112309,216.17,215.95,0.17887427]
[1693517756677,1.0074873,216.23,215.95,0.17887427]
[1693517756678,0.15112309,216.18,215.95,0.2547562]
[1693517756981,0.15112309,216.18,215.96,0.17887427]
[1693517757176,0.15112309,216.18,215.94,0.07588193]
[1693517757380,0.15112309,216.18,215.95,0.17886592]
[1693517757577,0.15112309,216.18,215.95,0.25474785]
[1693517757778,0.15112309,216.18,215.88,0.15176386]
[1693517757779,0.15112309,216.17,215.96,0.17886592]
[1693517757976,0.15112309,216.17,215.95,0.17886592]
[1693517758177,0.15112309,216.17,215.94,0.07588193]
[1693517758376,0.15112309,216.17,215.95,0.17887731]
[1693517760180,0.15112309,216.18,215.95,0.17887731]
[1693517760380,0.15112309,216.17,215.95,0.17887731]
[1693517761583,0.15112309,216.18,215.95,0.17887731]
[1693517761777,0.15112309,216.17,215.95,0.17887731]
[1693517768081,0.15112309,216.18,215.95,0.25475924]
[1693517768282,0.15112309,216.18,215.96,0.17887731]
[1693517769583,0.15112309,216.18,215.95,0.07588193]
[1693517769784,0.15112309,216.18,215.96,0.17885359]
[1693517769979,0.15112309,216.18,215.95,0.17885359]
[1693517770183,0.15112309,216.18,215.96,0.1788592]
[1693517770388,0.15112309,216.18,215.95,0.1788592]
[1693517770581,0.15112309,216.18,215.96,0.17886271]
[1693517771181,0.15112309,216.18,215.94,0.07588193]
[1693517771388,0.15112309,216.18,215.95,0.25474431]
[1693517771586,0.15112309,216.18,215.96,0.17886238]
[1693517772282,0.15112309,216.18,215.95,0.17886238]
[1693517772482,0.15112309,216.18,215.96,0.17886484]
[1693517772684,0.15112309,216.07,215.84,0.07588193]
[1693517772882,0.15112309,216.08,215.73,0.07588193]
[1693517773087,0.15112309,216.08,215.74,0.17941193]
[1693517774681,0.15112309,216.1,215.74,0.17941193]
[1693517774981,0.15112309,216.09,215.75,0.17941193]
[1693517775184,0.15112309,216.09,215.76,0.17941193]
[1693517775382,0.15112309,216.09,215.69,0.17941193]
[1693517775689,0.15112309,216.11,215.7,0.17941193]
[1693517775988,0.8509985,216.1,215.71,0.17941193]
[1693517776182,0.8509985,216.1,215.72,0.17941193]
[1693517776386,0.8509985,216.11,215.66,0.17941193]
[1693517776583,0.85100095,216.1,215.67,0.17941193]
[1693517776785,0.85100095,216.1,215.68,0.17941193]
[1693517776986,0.85100095,216.1,215.66,0.17941193]
[1693517777184,0.85100095,216.11,215.67,0.17941193]
[1693517777390,0.85100095,216.1,215.68,0.17941193]
[1693517777587,0.85100095,216.1,215.58,0.15176386]
[1693517777588,0.85100095,216.11,215.65,0.17941193]
[1693517777786,0.15112309,216.13,215.66,0.17941193]
[1693517777787,0.85100095,216.1,215.66,0.17941193]
[1693517777984,0.85100095,216.09,215.67,0.17941193]
[1693517778192,0.85100095,216.12,215.63,0.17941193]
[1693517778387,0.85101266,216.11,215.64,0.17941193]
[1693517778689,0.85101266,216.1,215.65,0.17941193]
[1693517778885,0.85101266,216.13,215.61,0.17941193]
[1693517779090,0.85101266,216.12,215.62,0.17941193]
[1693517779291,0.85101266,216.13,215.61,0.17941193]
[1693517779591,0.85101266,216.12,215.62,0.17941193]
[1693517779891,0.85101266,216.11,215.63,0.17941193]
[1693517780085,0.15112309,216.16,215.52,0.15176386]
[1693517780086,0.85101266,216.15,215.6,0.17941193]
[1693517780290,0.85101266,216.14,215.61,0.17941193]
[1693517780490,0.85101266,216.15,215.59,0.17941193]
[1693517780687,0.85101266,216.14,215.6,0.17941193]
[1693517780892,0.85101266,216.13,215.61,0.17941193]
[1693517781093,0.85101266,216.13,215.57,0.07588193]
[1693517781094,0.85101266,216.12,215.62,0.17941193]
[1693517781285,0.85101266,216.16,215.58,0.17941193]
[1693517781485,0.85101266,216.15,215.59,0.17941193]
[1693517781685,0.85101266,216.17,215.6,0.17941193]
[1693517781887,0.85101266,216.16,215.61,0.17941193]
[1693517782086,0.85101266,216.17,215.57,0.17941193]
[1693517782286,0.85101266,216.16,215.58,0.17941193]
[1693517782593,0.85101266,216.15,215.59,0.17941193]
[1693517782793,0.85101266,216.17,215.57,0.17941193]
[1693517782994,0.85101266,216.16,215.58,0.17941193]
[1693517783191,0.85101266,216.16,215.55,0.07588193]
[1693517783192,0.85101266,216.15,215.59,0.17941193]
[1693517783392,0.85101266,216.17,215.56,0.17941193]
[1693517783587,0.85101266,216.16,215.57,0.17941193]
[1693517783794,0.85101266,216.15,215.58,0.17941193]
[1693517783988,0.85101266,216.18,215.55,0.17941193]
[1693517784297,0.85101266,216.17,215.56,0.17941193]
[1693517784494,0.85101266,216.18,215.56,0.17941193]
[1693517784692,0.85101266,216.17,215.56,0.17941193]
[1693517784894,0.85101266,216.16,215.56,0.17941193]
[1693517785090,0.85101266,216.15,215.56,0.17941193]
[1693517785290,0.15112309,216.2,215.56,0.17941193]
[1693517785291,0.85101266,216.19,215.56,0.17941193]
[1693517785493,0.85101266,216.18,215.56,0.17941193]
[1693517785689,0.85101266,216.17,215.56,0.17941193]
[1693517785891,0.85101266,216.16,215.57,0.17941193]
[1693517786094,0.85101266,216.15,215.58,0.17941193]
[1693517786288,0.85101266,216.14,215.59,0.17941193]
[1693517786495,0.85101266,216.2,215.55,0.17941193]
[1693517786695,0.85101266,216.19,215.56,0.17941193]
[1693517786896,1.00213575,216.2,215.55,0.17941193]
[1693517787197,0.85101266,216.19,215.56,0.17941193]
[1693517787388,0.85101266,216.19,215.57,0.17941193]
[1693517787589,0.85101266,216.19,215.55,0.17941193]
[1693517787792,0.85101266,216.2,215.56,0.17941193]
[1693517787992,0.85101266,216.19,215.55,0.17941193]
[1693517788190,0.85101266,216.19,215.54,0.07588193]
[1693517788191,0.85101266,216.18,215.56,0.17941193]
[1693517788393,0.85101266,216.18,215.54,0.07588193]
[1693517788394,0.85101266,216.17,215.57,0.17941193]
[1693517788595,0.85101266,216.19,215.55,0.17941193]
[1693517788798,0.85101266,216.18,215.56,0.17941193]
[1693517788996,0.85101266,216.17,215.57,0.17941193]
[1693517789297,0.85101266,216.16,215.58,0.17941193]
[1693517789495,0.85101266,216.2,215.55,0.17941193]
[1693517789696,0.85101266,216.19,215.56,0.17941193]
[1693517789895,0.85101266,216.2,215.55,0.17941193]
[1693517790100,0.85101266,216.19,215.56,0.17941193]
[1693517790303,0.85101266,216.2,215.55,0.17941193]
[1693517790500,0.85101266,216.19,215.56,0.17941193]
[1693517790702,0.85101266,216.2,215.55,0.17941193]
[1693517790901,0.85101266,216.19,215.56,0.17941193]
[1693517791102,0.85101266,216.2,215.55,0.17941193]
[1693517791303,0.85101266,216.19,215.56,0.17941193]
[1693517791495,0.85101266,216.2,215.55,0.17941193]
[1693517791699,0.85101266,216.19,215.56,0.17941193]
[1693517792002,0.85101266,216.18,215.56,0.17941193]
[1693517792201,0.85101266,216.21,215.56,0.17941193]
[1693517792402,0.85101266,216.2,215.56,0.17941193]
[1693517792602,1.00213575,216.21,215.56,0.17941193]
[1693517792802,0.85101266,216.2,215.59,0.07588193]
[1693517793100,0.85101266,216.19,215.6,0.25529386]
[1693517793296,0.15112309,216.27,215.61,0.17941193]
[1693517793297,0.85101266,216.26,215.61,0.17941193]
[1693517793500,0.85101266,216.25,215.61,0.17941193]
[1693517793703,1.00213575,216.26,215.61,0.17941193]
[1693517793900,0.85101266,216.25,215.61,0.17941193]
[1693517794702,1.00213575,216.25,215.61,0.25529386]
[1693517794903,0.85101266,216.24,215.62,0.17941193]
[1693517797106,1.00213575,216.24,215.62,0.17941193]
[1693517797307,0.85101266,216.23,215.62,0.25529386]
[1693517797606,0.85101266,216.22,215.63,0.17941193]
[1693517797906,0.85101266,216.21,215.63,0.17941193]
[1693517798107,0.85101266,216.23,215.63,0.17941193]
[1693517798308,0.85101266,216.22,215.63,0.17941193]
[1693517798507,0.85101266,216.23,215.63,0.17941193]